bitfinex-derivatives/quotes_SOLF0:USTF0_20250421
["timestamp","ask_amount","ask_price","bid_price","bid_amount"]
[1745211540229,25.64,141.06,141.01,0.05435867]
[1745211540429,5.855743,141.02,140.92,5.855743]
[1745211540732,5.855743,141.0,140.94,5.855743]
[1745211540926,25.64,140.99,140.94,5.855743]
[1745211541326,25.64,140.99,140.96,5.855743]
[1745211541532,0.04506093,140.98,140.97,7.0935]
[1745211544637,25.64,141.02,141.0,7.0918]
[1745211544934,31.495743,141.02,141.0,7.0918]
[1745211545736,31.55024249,141.02,141.0,7.14199986]
[1745211550739,38.64144249,141.02,141.0,0.05019986]
[1745211552438,31.55024249,141.02,141.0,0.05019986]
[1745211552643,0.05449949,141.02,141.0,0.05019986]
[1745211553241,0.05449949,141.02,141.01,7.0915]
[1745211555140,1.4179369,141.05,141.04,7.09]
[1745211555637,5.855743,141.08,141.02,5.855743]
[1745211555836,5.855743,141.08,141.06,7.0887]
[1745211556037,32.7272,141.1,141.06,7.0887]
[1745211556239,5.855743,141.07,141.06,7.0887]
[1745211556539,32.7272,141.1,141.06,7.0887]
[1745211556835,5.855743,141.07,141.06,7.0887]
[1745211560045,5.855743,141.07,141.05,7.13468959]
[1745211560244,5.855743,141.07,141.05,0.04538959]
[1745211560543,5.855743,141.07,141.06,7.089]
[1745211561438,5.855743,141.1,141.05,0.04538959]
[1745211561644,5.855743,141.12,141.07,5.855743]
[1745211562033,5.855743,141.1,141.08,0.04705124]
[1745211562236,5.855743,141.1,141.09,7.0874]
[1745211562643,5.855743,141.1,141.08,0.04705124]
[1745211563746,5.855743,141.1,141.09,7.0875]
[1745211566348,25.62,141.14,141.09,7.0875]
[1745211566349,7.0868,141.12,141.09,7.0875]
[1745211566544,5.855743,141.1,141.09,7.0875]
[1745211566841,1.23369257,141.18,141.08,25.66705124]
[1745211567047,31.738,141.22,141.11,5.855743]
[1745211567347,31.738,141.22,141.09,1.9246]
[1745211567348,32.97151765,141.22,141.09,7.780343]
[1745211567542,5.855743,141.15,141.13,7.0859]
[1745211567844,5.855743,141.15,141.14,0.05004044]
[1745211569045,5.855743,141.15,141.14,7.13574044]
[1745211569246,5.855743,141.15,141.14,0.05004044]
[1745211569546,5.855743,141.15,141.12,7.0866]
[1745211569746,5.855743,141.13,141.12,7.0866]
[1745211571552,0.05262704,141.14,141.13,7.0862]
[1745211572748,0.05262704,141.14,141.11,0.04585951]
[1745211572948,5.855743,141.13,141.11,0.04585951]
[1745211574741,25.62,141.12,141.11,0.04585951]
[1745211576849,25.62,141.12,141.08,7.0886]
[1745211577041,5.855743,141.1,141.08,7.0886]
[1745211577751,5.855743,141.1,141.07,7.0891]
[1745211577953,0.05435543,141.1,141.08,0.04890758]
[1745211578148,5.855743,141.08,141.02,5.855743]
[1745211578349,31.475743,141.08,141.05,7.0897]
[1745211579056,31.475743,141.08,141.06,7.0896]
[1745211579348,31.53003197,141.08,141.06,7.0896]
[1745211580553,0.05428897,141.08,141.07,7.0892]
[1745211584354,5.91003197,141.08,141.06,7.0894]
[1745211584656,31.53003197,141.08,141.06,7.0894]
[1745211584954,31.53003197,141.08,141.07,7.0892]
[1745211585755,31.53003197,141.08,141.05,0.04881474]
[1745211586254,31.53003197,141.08,141.06,7.0894]
[1745211586555,25.67428897,141.08,141.06,7.0894]
[1745211586856,25.67428897,141.08,141.07,7.0892]
[1745211587055,31.53003197,141.08,141.05,0.04881474]
[1745211587449,31.53003197,141.08,141.06,7.0893]
[1745211588852,31.53003197,141.08,141.05,0.04881474]
[1745211589060,25.67428897,141.08,141.07,7.0892]
[1745211589450,0.05428897,141.08,141.07,7.0892]
[1745211593461,0.05428897,141.08,141.06,7.0895]
[1745211593657,5.855743,141.07,141.06,7.0895]
[1745211593863,31.475743,141.07,141.05,0.04881474]
[1745211594162,31.475743,141.07,141.05,7.13871474]
[1745211595164,31.475743,141.07,141.06,7.0897]
[1745211597065,31.475743,141.07,141.05,0.04881474]
[1745211599768,38.565043,141.07,141.05,0.04881474]
[1745211600265,7.0897,141.06,141.05,0.04881474]
[1745211600968,38.565143,141.07,141.05,0.04881474]
[1745211602271,31.475743,141.07,141.05,0.04881474]
[1745211602668,0.05428897,141.08,141.05,0.04881474]
[1745211602863,0.05428897,141.08,141.06,5.855743]
[1745211603169,1.9829,141.15,141.06,31.475743]
[1745211603365,5.855743,141.13,141.06,25.62]
[1745211603563,5.855743,141.13,141.07,5.855743]
[1745211603767,5.855743,141.11,141.1,7.0872]
[1745211604270,0.05216189,141.12,141.09,5.90333565]
[1745211604472,25.62,141.14,141.11,5.855743]
[1745211604772,0.05293199,141.12,141.11,12.942943]
[1745211605070,31.475743,141.17,141.11,5.855743]
[1745211605269,1.9829,141.21,141.08,25.62]
[1745211605270,25.62,141.2,141.13,9.13269369]
[1745211605770,9.13269369,141.18,141.1,1.9641]
[1745211605971,9.13269369,141.16,141.1,1.9641]
[1745211606265,0.04387803,141.14,141.12,7.13345586]
[1745211606569,0.04387803,141.14,141.12,0.04695586]
[1745211606973,0.04387803,141.14,141.13,7.0862]
[1745211609872,0.04387803,141.14,141.12,0.04695586]
[1745211611274,0.04387803,141.14,141.12,7.13365586]
[1745211611872,0.04387803,141.14,141.12,0.04695586]
[1745211612774,9.17657172,141.14,141.12,0.04695586]
[1745211613270,16.26257172,141.14,141.12,0.04695586]
[1745211613574,9.17657172,141.14,141.04,40.80899369]
[1745211613774,9.13269369,141.14,141.04,40.80899369]
[1745211613973,7.0865,141.13,141.09,7.088]
[1745211614674,0.04577939,141.12,141.1,0.04915167]
[1745211616178,0.04577939,141.12,141.1,7.13665167]
[1745211622180,0.04577939,141.12,141.1,0.04915167]
[1745211623977,0.04577939,141.12,141.11,7.0872]
[1745211624786,0.04577939,141.12,141.1,0.04915167]
[1745211625385,0.04577939,141.12,141.11,7.0872]
[1745211627690,25.7,141.18,141.11,5.84932167]
[1745211627988,25.7,141.18,141.13,5.84932167]
[1745211628180,25.7,141.18,141.16,7.0844]
[1745211628384,25.7,141.18,141.14,5.84932167]
[1745211628790,25.7,141.18,141.17,7.0842]
[1745211632695,0.0450545,141.19,141.16,7.0845]
[1745211632992,0.0450545,141.19,141.15,0.05443568]
[1745211633186,0.0450545,141.19,141.17,7.0842]
[1745211633695,0.0450545,141.19,141.15,0.05443568]
[1745211634194,0.0450545,141.19,141.16,7.0843]
[1745211634396,0.0450545,141.19,141.15,0.05443568]
[1745211634999,0.0450545,141.19,141.17,7.0841]
[1745211637597,0.0450545,141.19,141.16,7.0845]
[1745211637802,0.0450545,141.19,141.15,0.05443568]
[1745211639099,0.0450545,141.19,141.16,7.0846]
[1745211639299,0.0450545,141.19,141.15,0.05443568]
[1745211640100,0.0450545,141.19,141.17,7.084]
[1745211641903,0.0450545,141.19,141.18,7.0837]
[1745211646101,0.0450545,141.19,141.15,0.05443568]
[1745211646301,9.13036067,141.18,141.15,0.05443568]
[1745211646502,16.21436067,141.18,141.15,0.05443568]
[1745211646701,25.7,141.17,141.15,0.05443568]
[1745211648807,32.7843,141.17,141.15,0.05443568]
[1745211649309,5.84700719,141.16,141.15,0.05443568]
[1745211652012,5.84700719,141.16,141.09,5.8138]
[1745211652209,5.84700719,141.12,141.09,1.9545]
[1745211652504,12.93410719,141.12,141.06,5.84700719]
[1745211652710,5.84700719,141.1,141.08,7.0885]
[1745211652911,5.84700719,141.1,141.05,5.84700719]
[1745211653212,5.84700719,141.08,141.06,0.04979636]
[1745211653414,5.84700719,141.08,141.02,3.917]
[1745211653704,5.84700719,141.08,140.99,26.39280022]
[1745211653705,5.84700719,141.04,140.99,32.23980741]
[1745211654104,0.0487669,141.03,141.01,7.14407133]
[1745211654301,0.0487669,141.03,141.01,0.05237133]
[1745211654611,0.0487669,141.03,141.02,7.0917]
[1745211654812,0.0487669,141.03,141.01,0.05237133]
[1745211655213,0.0487669,141.03,141.01,7.14447133]
[1745211657010,0.0487669,141.03,141.01,0.05237133]
[1745211657011,5.84700719,141.02,141.01,0.05237133]
[1745211657217,5.84700719,141.02,140.94,5.84700719]
[1745211657512,25.7,141.01,140.98,7.0933]
[1745211657707,25.7,141.01,140.93,98.13440091]
[1745211658217,0.0519686,141.0,140.97,0.05321083]
[1745211659616,7.1450686,141.0,140.97,0.05321083]
[1745211659911,9.15850526,140.99,140.97,0.05321083]
[1745211660214,16.25200526,140.99,140.97,0.05321083]
[1745211660416,9.15850526,140.99,140.97,0.05321083]
[1745211660815,7.0937,140.98,140.97,0.05321083]
[1745211661416,9.15850526,140.99,140.97,0.05321083]
[1745211661711,2.1029686,141.0,140.97,0.05321083]
[1745211661915,0.0519686,141.0,140.97,0.05321083]
[1745211662116,25.74,140.99,140.98,7.0933]
[1745211662416,25.74,140.99,140.97,0.05321083]
[1745211663221,25.74,140.99,140.97,7.14741083]
[1745211665114,25.74,140.99,140.97,0.05321083]
[1745211666020,25.74,140.99,140.97,7.14741083]
[1745211666318,25.74,140.99,140.97,0.05321083]
[1745211666519,25.74,140.99,140.98,7.0937]
[1745211666820,25.74,140.99,140.97,0.05321083]
[1745211668526,32.8333,140.99,140.97,0.05321083]
[1745211669923,7.0937,140.98,140.97,0.05321083]
[1745211670616,16.25220526,140.98,140.97,0.05321083]
[1745211672125,34.825,140.99,140.97,0.05321083]
[1745211673626,25.76,140.98,140.97,0.05321083]
[1745211676025,0.0519686,141.0,140.99,7.0932]
[1745211679433,0.0519686,141.0,140.98,7.0935]
[1745211682637,0.0519686,141.0,140.97,7.14731083]
[1745211682839,0.0519686,141.0,140.97,0.05321083]
[1745211682840,7.1447686,141.0,140.97,0.05321083]
[1745211683036,0.0519686,141.0,140.97,0.05321083]
[1745211683836,0.0519686,141.0,140.97,7.14711083]
[1745211684037,0.0519686,141.0,140.97,0.05321083]
[1745211684537,0.0519686,141.0,140.98,7.0934]
[1745211687342,0.0519686,141.0,140.97,7.14721083]
[1745211688736,0.0519686,141.0,140.98,7.0936]
[1745211690241,0.0519686,141.0,140.99,7.0932]
[1745211693547,5.91041816,141.0,140.98,7.0935]
[1745211695245,0.0519686,141.0,140.98,7.0935]
[1745211696044,0.0519686,141.0,140.97,7.14731083]
[1745211696445,0.0519686,141.0,140.97,0.05321083]
[1745211696844,0.0519686,141.0,140.98,7.0937]
[1745211697547,0.0519686,141.0,140.97,7.14721083]
[1745211698241,9.20835425,141.0,140.97,0.05321083]
[1745211698744,16.30145425,141.0,140.97,0.05321083]
[1745211699746,9.20835425,141.0,140.97,0.05321083]
[1745211700246,16.30115425,141.0,140.97,0.05321083]
[1745211701346,7.0933,140.99,140.97,0.05321083]
[1745211701648,16.30135425,141.0,140.97,0.05321083]
[1745211701948,9.20835425,141.0,140.97,0.05321083]
[1745211702148,7.0937,140.98,140.97,0.05321083]
[1745211702648,18.3127713,140.98,140.86,52.65295166]
[1745211702842,16.25248565,140.94,140.87,1.99]
[1745211703046,25.74,140.93,140.87,1.99]
[1745211703251,25.74,140.93,140.86,52.65295166]
[1745211703845,0.04988712,140.91,140.88,0.052318]
[1745211704149,0.04988712,140.91,140.88,7.150718]
[1745211705161,0.04988712,140.91,140.89,7.0981]
[1745211705748,0.04988712,140.91,140.88,0.052318]
[1745211706750,0.04988712,140.91,140.9,7.0977]
[1745211715963,0.04988712,140.91,140.89,7.0981]
[1745211716164,5.8668438,140.9,140.88,0.052318]
[1745211716360,25.74,140.89,140.88,7.151018]
[1745211717559,0.04988712,140.91,140.9,7.0977]
[1745211719563,0.04988712,140.91,140.89,7.0981]
[1745211719759,0.04988712,140.91,140.88,0.052318]
[1745211720165,0.04988712,140.91,140.88,7.150818]
[1745211720367,7.14748712,140.91,140.88,0.052318]
[1745211720563,0.04988712,140.91,140.88,0.052318]
[1745211721368,0.04988712,140.91,140.9,7.0977]
[1745211724567,25.74,140.92,140.91,7.0972]
[1745211724771,25.84,140.94,140.89,1.9486]
[1745211725771,0.05432563,140.93,140.9,0.05053145]
[1745211725973,0.05432563,140.93,140.9,9.22014017]
[1745211726266,0.05432563,140.93,140.9,11.18254017]
[1745211726468,0.05432563,140.93,140.92,7.0967]
[1745211731674,35.06393435,140.93,140.9,0.05053145]
[1745211732373,35.06393435,140.93,140.91,7.097]
[1745211732574,25.89432563,140.93,140.9,0.05053145]
[1745211732869,0.05432563,140.93,140.92,7.0967]
[1745211747583,25.84,140.96,140.95,7.0952]
[1745211747884,29.5944,140.99,140.94,5.86518888]
[1745211748186,35.45958888,140.99,140.98,7.0937]
[1745211748685,25.84,140.99,140.98,7.0937]
[1745211748886,0.04787149,141.0,140.99,7.0932]
[1745211769403,0.04787149,141.0,140.99,12.9506502]
[1745211780303,25.86,141.04,141.03,7.0912]
[1745211780603,11.22023,141.08,141.03,5.8574502]
[1745211780808,25.64,141.07,141.05,5.8574502]
[1745211781004,25.64,141.07,141.04,5.8574502]
[1745211781203,25.64,141.07,141.06,7.0897]
[1745211786311,31.4974502,141.07,141.05,7.14125998]
[1745211787115,25.64,141.07,141.06,7.0897]
[1745211788516,25.64,141.07,141.05,7.14125998]
[1745211789114,5.8574502,141.06,140.97,5.9024]
[1745211789316,5.8574502,141.04,140.96,25.64]
[1745211789613,25.64,141.03,141.01,7.0921]
[1745211790314,25.6849238,141.03,141.01,7.14664056]
[1745211792414,25.6849238,141.03,141.01,0.05454056]
[1745211792915,25.6849238,141.03,141.01,7.14674056]
[1745211795815,25.6849238,141.03,141.02,7.0917]
[1745211797918,25.6849238,141.03,141.01,7.14654056]
[1745211798117,31.542374,141.03,141.01,7.14654056]
[1745211799818,5.8574502,141.02,141.01,0.05454056]
[1745211800620,5.8574502,141.02,140.93,31.5721]
[1745211800918,5.8574502,140.99,140.95,5.8574502]
[1745211801117,5.8574502,141.0,140.95,5.8574502]
[1745211801317,5.8574502,141.0,140.99,7.0932]
[1745211802920,5.8574502,141.0,140.98,7.14743444]
[1745211803118,31.4974502,140.99,140.98,7.14743444]
[1745211804112,31.4974502,140.99,140.98,0.05383444]
[1745211806919,31.4974502,140.99,140.98,7.14753444]
[1745211807119,31.4974502,140.99,140.98,0.05383444]
[1745211808712,38.5906502,140.99,140.92,5.8574502]
[1745211808911,5.8574502,140.98,140.93,5.8574502]
[1745211809119,5.8574502,140.97,140.93,5.8574502]
[1745211809716,0.04601343,140.96,140.94,0.05442045]
[1745211810220,0.04601343,140.96,140.95,7.0948]
[1745211817023,13.00346363,140.96,140.83,8.17786674]
[1745211817219,5.8574502,140.88,140.84,3.9423]
[1745211817525,5.8574502,140.88,140.87,7.0993]
[1745211817718,5.8574502,140.88,140.84,3.9423]
[1745211817914,5.8574502,140.88,140.84,9.7997502]
[1745211818316,0.050847,140.87,140.85,0.04960226]
[1745211819125,0.050847,140.87,140.86,7.0997]
[1745211820224,0.050847,140.87,140.85,0.04960226]
[1745211821424,0.050847,140.87,140.86,7.0998]
[1745211826320,0.050847,140.87,140.85,0.04960226]
[1745211826525,5.8574502,140.86,140.79,5.8574502]
[1745211826725,5.8574502,140.84,140.79,5.8574502]
[1745211827025,5.8574502,140.84,140.83,7.1013]
[1745211827324,25.66,140.85,140.75,29.529]
[1745211827521,5.8574502,140.84,140.8,5.8574502]
[1745211827921,25.66,140.85,140.79,0.05039877]
[1745211827922,5.8574502,140.82,140.79,0.05039877]
[1745211828218,5.8574502,140.82,140.79,7.15359877]
[1745211828416,5.8574502,140.82,140.79,0.05039877]
[1745211828615,5.8574502,140.82,140.79,7.15359877]
[1745211828816,5.8574502,140.82,140.79,0.05039877]
[1745211829325,25.66,140.81,140.79,0.05039877]
[1745211829620,5.8574502,140.8,140.79,0.05039877]
[1745211829819,5.8574502,140.8,140.7,65.42293394]
[1745211830016,5.8574502,140.78,140.73,5.8574502]
[1745211830215,5.8574502,140.8,140.77,7.1038]
[1745211830424,25.66,140.81,140.77,5.8574502]
[1745211830827,25.66,140.81,140.8,7.1028]
[1745211833127,25.66,140.81,140.68,362.23619054]
[1745211833128,55.47035366,140.81,140.68,1.23619054]
[1745211833323,5.8574502,140.74,140.69,5.8574502]
[1745211833523,25.66,140.73,140.71,5.8574502]
[1745211833825,31.5174502,140.73,140.72,7.1068]
[1745211834126,25.66,140.73,140.69,5.8574502]
[1745211834329,5.8574502,140.71,140.65,5.6818]
[1745211834623,5.8574502,140.71,140.65,11.5392502]
[1745211834829,5.8574502,140.71,140.66,7.1095]
[1745211835123,7.1068,140.72,140.66,7.1095]
[1745211835330,9.19876138,140.7,140.6,8.17786674]
[1745211835529,25.66,140.69,140.68,0.04709702]
[1745211835930,25.66,140.69,140.63,9.19876138]
[1745211836230,25.66,140.69,140.67,0.04920787]
[1745211837030,32.7685,140.69,140.67,0.04920787]
[1745211837230,25.66,140.69,140.67,0.04920787]
[1745211838936,25.66,140.69,140.67,7.15820787]
[1745211839235,25.66,140.69,140.67,0.04920787]
[1745211839533,25.66,140.69,140.68,7.1088]
[1745211840735,0.04856878,140.7,140.69,7.1083]
[1745211843829,25.94,140.74,140.67,9.24796925]
[1745211844036,25.94,140.74,140.68,1.9814]
[1745211844437,25.94,140.74,140.72,7.1065]
[1745211845036,25.99384648,140.74,140.73,7.1063]
[1745211847040,0.05384648,140.74,140.73,7.1063]
[1745211855344,0.05384648,140.74,140.73,12.9852931]
[1745211857143,25.94,140.78,140.77,7.1043]
[1745211857345,5.8789931,140.81,140.76,5.8789931]
[1745211857648,25.94,140.8,140.76,5.8789931]
[1745211857949,25.94,140.8,140.78,7.1035]
[1745211858444,25.9854893,140.8,140.78,7.15049172]
[1745211858643,25.9854893,140.8,140.78,0.04699172]
[1745211860251,25.9854893,140.8,140.78,7.15069172]
[1745211862457,25.9854893,140.8,140.79,7.1033]
[1745211862956,588.6,140.83,140.79,5.8789931]
[1745211863154,25.94,140.86,140.82,5.8789931]
[1745211863455,25.94,140.86,140.84,5.8789931]
[1745211864056,25.9851758,140.86,140.85,12.9792931]
[1745211864256,25.9851758,140.86,140.85,7.1003]
[1745211864555,0.0451758,140.86,140.85,12.9792931]
[1745211865258,0.0451758,140.86,140.85,7.1003]
[1745211867560,0.0451758,140.86,140.84,0.05088518]
[1745211869257,0.0451758,140.86,140.84,7.15158518]
[1745211870461,0.0451758,140.86,140.85,7.1003]
[1745211877561,0.0451758,140.86,140.84,7.15128518]
[1745211879961,0.0451758,140.86,140.84,0.05088518]
[1745211882362,0.0451758,140.86,140.84,7.15158518]
[1745211883462,0.0451758,140.86,140.85,7.1003]
[1745211883662,0.0451758,140.86,140.84,0.05088518]
[1745211884165,0.0451758,140.86,140.85,7.1003]
[1745211885566,0.0451758,140.86,140.84,7.15148518]
[1745211892874,0.0451758,140.86,140.85,7.1003]
[1745211893265,0.0451758,140.86,140.84,0.05088518]
[1745211893570,0.0451758,140.86,140.84,7.15138518]
[1745211894066,7.1449758,140.86,140.84,0.05088518]
[1745211894674,25.84,140.85,140.84,0.05088518]
[1745211894873,25.84,140.85,140.84,7.15168518]
[1745211905079,25.84,140.85,140.84,0.05088518]
[1745211905282,31.7117113,140.85,140.79,3.9345]
[1745211905581,5.8717113,140.83,140.79,3.9345]
[1745211906080,5.8717113,140.83,140.81,7.1019]
[1745211906480,5.92603936,140.83,140.81,7.15573821]
[1745211906679,5.92603936,140.83,140.81,0.05383821]
[1745211906874,5.92603936,140.83,140.75,4.1091]
[1745211907074,5.8717113,140.8,140.75,9.9808113]
[1745211907273,5.8717113,140.8,140.78,7.1037]
[1745211907677,5.8717113,140.8,140.77,7.1039]
[1745211907981,5.92510863,140.8,140.77,7.1555017]
[1745211908281,13.02800863,140.8,140.77,0.0516017]
[1745211908480,5.8717113,140.78,140.77,0.0516017]
[1745211911381,12.9755113,140.78,140.77,0.0516017]
[1745211911884,5.8717113,140.78,140.77,0.0516017]
[1745211917086,12.9755113,140.78,140.77,0.0516017]
[1745211917581,5.8717113,140.78,140.77,0.0516017]
[1745211919989,12.9755113,140.78,140.77,0.0516017]
[1745211920384,5.8717113,140.78,140.77,0.0516017]
[1745211922393,5.8717113,140.79,140.77,0.0516017]
[1745211922588,5.92510863,140.8,140.77,0.0516017]
[1745211922890,5.92510863,140.8,140.78,7.1034]
[1745211923089,0.05339733,140.8,140.77,5.923313]
[1745211923791,0.05339733,140.8,140.79,7.1033]
[1745211924192,0.05339733,140.8,140.77,0.0516017]
[1745211924986,5.8717113,140.79,140.77,0.0516017]
[1745211925192,5.8717113,140.78,140.77,0.0516017]
[1745211928595,5.8717113,140.79,140.77,7.1559017]
[1745211930391,5.92510863,140.8,140.77,0.0516017]
[1745211931602,5.92510863,140.8,140.78,7.1038]
[1745211933302,5.8717113,140.79,140.78,7.1038]
[1745211937507,5.8717113,140.79,140.77,7.1558017]
[1745211938709,5.8717113,140.79,140.77,0.0516017]
[1745211938903,7.15629733,140.8,140.77,0.0516017]
[1745211938904,5.8717113,140.78,140.77,0.0516017]
[1745211939208,5.8717113,140.78,140.71,9.7997113]
[1745211939508,5.8717113,140.75,140.73,7.1059]
[1745211940002,5.8717113,140.76,140.74,7.1058]
[1745211940208,5.92374289,140.76,140.74,7.15297613]
[1745211940405,0.05203159,140.76,140.74,0.04717613]
[1745211940602,0.05203159,140.76,140.75,7.1053]
[1745211941908,0.05203159,140.76,140.74,7.15277613]
[1745211942108,0.05203159,140.76,140.74,0.04717613]
[1745211942610,0.05203159,140.76,140.74,7.15287613]
[1745211944312,0.05203159,140.76,140.75,7.1053]
[1745211950815,25.7,140.81,140.75,5.8717113]
[1745211951020,25.7,140.81,140.79,5.8717113]
[1745211951318,25.7,140.81,140.78,5.8717113]
[1745211951515,593.9717113,140.83,140.78,5.8717113]
[1745211951720,0.04973375,140.82,140.79,5.91998873]
[1745211952017,0.04973375,140.82,140.8,7.1028]
[1745211954725,0.04973375,140.82,140.81,7.1023]
[1745211967232,0.04973375,140.82,140.8,7.1027]
[1745211967434,0.04973375,140.82,140.79,5.91998873]
[1745211968234,0.04973375,140.82,140.81,7.1023]
[1745211969628,25.68,140.86,140.81,5.8717113]
[1745211969833,25.68,140.86,140.83,5.8717113]
[1745211970134,25.68,140.86,140.85,7.1003]
[1745211976533,31.5517113,140.86,140.84,7.14657919]
[1745211976739,5.8717113,140.85,140.84,7.14657919]
[1745211976937,31.5517113,140.86,140.84,7.14657919]
[1745211979941,0.05011878,140.87,140.85,5.8717113]
[1745211980242,36.94865,140.9,140.86,5.8717113]
[1745211980441,36.94865,140.9,140.87,5.8717113]
[1745211981043,36.94865,140.9,140.88,7.0988]
[1745211981242,36.99866485,140.9,140.88,7.0988]
[1745211982040,36.99866485,140.9,140.89,7.0983]
[1745211984336,11.31866485,140.9,140.89,7.0983]
[1745211985843,31.5517113,140.95,140.93,7.096]
[1745211986040,5.8717113,140.94,140.93,7.096]
[1745211986342,31.5517113,140.95,140.92,7.0964]
[1745211986545,5.8717113,140.94,140.92,7.0964]
[1745211986945,5.91731389,140.94,140.92,7.14797337]
[1745211989646,5.91731389,140.94,140.92,0.05157337]
[1745211989945,5.8717113,140.93,140.92,0.05157337]
[1745211992148,12.9679113,140.93,140.92,0.05157337]
[1745211992650,5.8717113,140.93,140.92,0.05157337]
[1745211995552,12.9679113,140.93,140.92,0.05157337]
[1745211996752,5.8717113,140.93,140.85,7.9256113]
[1745211996951,5.8717113,140.89,140.85,5.8717113]
[1745211997153,31.5317113,140.89,140.86,7.0997]
[1745211997653,31.5317113,140.89,140.84,5.8717113]
[1745211997853,31.57698545,140.89,140.87,7.0991]
[1745211998058,31.57698545,140.89,140.86,0.05231704]
[1745211998554,5.8717113,140.88,140.86,7.15181704]
[1745211999559,5.8717113,140.88,140.87,7.0993]
[1745211999860,31.57698545,140.89,140.87,7.0993]
[1745212000056,25.70527415,140.89,140.86,5.92402834]
[1745212000558,25.70527415,140.89,140.88,7.0988]
[1745212000856,25.70527415,140.89,140.86,0.05231704]
[1745212001859,31.57698545,140.89,140.86,7.15191704]
[1745212002060,5.8717113,140.87,140.86,0.05231704]
[1745212002454,5.8717113,140.84,140.8,5.9263]
[1745212002659,5.8717113,140.83,140.8,1.9295]
[1745212002957,5.8717113,140.82,140.77,5.8717113]
[1745212003453,0.04925776,140.81,140.8,7.1026]
[1745212022677,25.66,140.83,140.82,7.1018]
[1745212023068,25.66,140.83,140.82,12.9735113]
[1745212023575,25.68,140.86,140.85,7.1002]
[1745212032482,0.04993983,140.87,140.86,7.0998]
[1745212032679,25.66,140.91,140.86,5.8717113]
[1745212032883,25.66,140.91,140.89,5.8717113]
[1745212033081,25.66,140.91,140.9,7.0977]
[1745212033385,25.66,140.91,140.9,12.9694113]
[1745212033683,25.66,140.91,140.9,7.0977]
[1745212035578,25.66,140.91,140.9,12.9694113]
[1745212037985,25.66,140.91,140.9,7.0977]
[1745212038783,31.5317113,140.91,140.89,7.14676235]
[1745212038979,25.66,140.91,140.89,0.04866235]
[1745212039485,0.0447765,140.92,140.9,5.8717113]
[1745212039785,0.0447765,140.92,140.91,5.8717113]
[1745212040186,0.0447765,140.92,140.91,12.9689113]
[1745212042285,0.0447765,140.92,140.9,5.8717113]
[1745212042477,0.0447765,140.92,140.89,5.92037365]
[1745212042982,0.0447765,140.92,140.9,5.8717113]
[1745212044188,25.66,140.95,140.91,5.8717113]
[1745212044486,31.5317113,140.95,140.91,5.8717113]
[1745212044985,25.66,140.95,140.92,5.8717113]
[1745212045188,25.66,140.97,140.92,5.8717113]
[1745212045388,0.05435112,140.95,140.92,5.92005283]
[1745212045586,0.05435112,140.95,140.94,7.0957]
[1745212045982,25.66,140.99,140.94,5.8717113]
[1745212046181,31.5317113,140.99,140.94,5.8717113]
[1745212046580,25.66,140.99,140.93,5.8717113]
[1745212046787,31.5317113,140.99,140.89,25.66]
[1745212046991,31.5317113,141.02,140.97,5.8717113]
[1745212047491,0.05308781,141.01,140.98,0.04682731]
[1745212047695,5.92479911,141.01,140.98,0.04682731]
[1745212047893,5.92479911,141.01,140.99,7.093]
[1745212048491,5.92479911,141.01,141.0,7.0927]
[1745212048792,0.05308781,141.01,141.0,7.0927]
[1745212048986,0.05308781,141.01,140.99,7.093]
[1745212049290,0.05308781,141.01,140.98,5.91853861]
[1745212049588,0.05308781,141.01,141.0,7.0927]
[1745212050184,0.05308781,141.01,140.99,7.0931]
[1745212050690,0.05308781,141.01,141.0,7.0927]
[1745212052294,0.05308781,141.01,140.99,7.093]
[1745212052596,0.05308781,141.01,140.98,5.91853861]
[1745212052797,0.05308781,141.01,141.0,7.0927]
[1745212058490,0.05308781,141.01,140.99,7.0931]
[1745212059500,0.05308781,141.01,141.0,7.0927]
[1745212059702,5.92479911,141.01,140.98,0.04682731]
[1745212060200,5.92479911,141.01,140.99,7.0929]
[1745212060395,0.05308781,141.01,140.99,7.0929]
[1745212063903,5.8717113,141.0,140.98,0.04682731]
[1745212064103,5.8717113,140.99,140.92,5.8717113]
[1745212064303,5.8717113,140.97,140.92,5.8717113]
[1745212064502,31.4917113,140.98,140.93,5.8717113]
[1745212064803,25.62,140.98,140.95,5.8717113]